bitfinex/quotes_SOLUSD_20250717
["timestamp","ask_amount","ask_price","bid_price","bid_amount"]
[1752724250799,31.74052393,169.37,169.36,1e-08]
[1752724250995,0.14216157,169.36,169.31,0.06]
[1752724251208,16.78468397,169.34,169.31,0.06]
[1752724251515,45.42723469,169.33,169.31,0.06]
[1752724251885,25.1462906,169.32,169.31,0.06]
[1752724252704,25.8362906,169.32,169.31,1e-08]
[1752724253389,31.88442901,169.32,169.31,1e-08]
[1752724253890,42.78468397,169.28,169.24,0.06]
[1752724254125,16.78468397,169.24,169.21,0.2]
[1752724254308,39.54160663,169.23,169.21,0.2]
[1752724255197,16.78468397,169.22,169.21,1e-08]
[1752724255406,31.05575756,169.22,169.21,1e-08]
[1752724255706,22.69415093,169.22,169.21,1e-08]
[1752724255891,14.27107359,169.22,169.21,0.65000001]
[1752724256098,5.90917594,169.23,169.21,0.65000001]
[1752724256719,31.16,169.22,169.21,0.65000001]
[1752724257023,56.3062906,169.22,169.21,1e-08]
[1752724257718,62.21575756,169.22,169.21,1e-08]
[1752724258104,37.06946696,169.22,169.21,1e-08]
[1752724258525,62.21575756,169.22,169.21,1e-08]
[1752724260503,37.06946696,169.22,169.21,0.65000001]
[1752724260907,62.86575756,169.22,169.21,1e-08]
[1752724261503,23.34415093,169.22,169.21,1e-08]
[1752724261707,22.69415093,169.22,169.21,0.65000001]
[1752724261907,37.12946696,169.22,169.21,0.65000001]
[1752724262214,5.90946696,169.22,169.21,0.65000001]
[1752724262529,37.12946696,169.22,169.21,0.65000001]
[1752724263306,62.27575756,169.22,169.21,1e-08]
[1752724263507,62.92575756,169.22,169.21,1e-08]
[1752724264309,62.27575756,169.22,169.21,1e-08]
[1752724264618,62.92575756,169.22,169.21,1e-08]
[1752724265315,54.56415093,169.22,169.21,1e-08]
[1752724265513,62.27575756,169.22,169.21,1e-08]
[1752724265735,62.30575756,169.22,169.21,1e-08]
[1752724266944,53.94415093,169.22,169.21,1e-08]
[1752724267224,62.30575756,169.22,169.21,1e-08]
[1752724267933,53.94415093,169.22,169.21,1e-08]
[1752724268111,62.30575756,169.22,169.21,1e-08]
[1752724268720,62.95575756,169.22,169.21,1e-08]
[1752724268920,63.09791913,169.22,169.21,1e-08]
[1752724270615,62.30575756,169.22,169.21,1e-08]
[1752724271235,53.94415093,169.22,169.21,1e-08]
[1752724271408,62.30575756,169.22,169.21,1e-08]
[1752724273733,62.30575756,169.22,169.21,0.65000001]
[1752724273915,37.13946696,169.22,169.21,0.65000001]
[1752724275127,5.93946696,169.22,169.21,0.65000001]
[1752724275431,0.03,169.22,169.21,10.67730664]
[1752724276536,0.03,169.22,169.21,16.72928441]
[1752724276908,0.03,169.22,169.21,2.31570001]
[1752724277105,0.03,169.22,169.21,10.67730664]
[1752724282127,0.03,169.22,169.21,16.58712284]
[1752724282736,0.03,169.22,169.21,16.72928441]
[1752724283554,0.03,169.29,169.22,16.92684554]
[1752724283756,0.03,169.29,169.28,8.36160663]
[1752724283927,0.03,169.29,169.28,9.99220663]
[1752724284269,0.03,169.29,169.28,10.67220663]
[1752724284766,0.03,169.29,169.28,2.3106]
[1752724284925,0.03,169.29,169.28,10.67220663]
[1752724285447,0.03,169.29,169.28,10.8143682]
[1752724285837,0.03,169.29,169.28,25.08334723]
[1752724286026,0.03,169.29,169.28,16.7217406]
[1752724287428,0.03,169.29,169.28,25.08334723]
[1752724287834,0.03,169.29,169.28,55.70519392]
[1752724288039,0.03,169.29,169.28,51.08334723]
[1752724290235,0.03,169.29,169.28,25.08334723]
[1752724290852,0.03,169.36,169.31,26.0]
[1752724291053,0.03,169.36,169.35,8.36160663]
[1752724291435,0.03,169.36,169.35,9.04160663]
[1752724293326,0.03,169.36,169.35,46.8259682]
[1752724293756,0.03,169.36,169.35,48.3821682]
[1752724294077,0.03,169.36,169.35,1.5562]
[1752724294349,0.03,169.36,169.35,0.68]
[1752724294654,0.03,169.36,169.35,9.04160663]
[1752724295469,0.03,169.36,169.32,8.36160663]
[1752724295630,9.07160663,169.36,169.31,9.04160663]
[1752724295838,0.71,169.36,169.32,8.36160663]
[1752724296353,0.03,169.36,169.32,8.36160663]
[1752724296653,0.03,169.36,169.32,9.04160663]
[1752724297065,5.93458195,169.36,169.32,9.04160663]
[1752724298760,5.93458195,169.36,169.33,0.68]
[1752724300044,5.93458195,169.36,169.35,8.36160663]
[1752724300255,5.93458195,169.36,169.35,9.04160663]
[1752724301062,0.03,169.36,169.35,9.04160663]
[1752724303251,0.03,169.36,169.35,9.1837682]
[1752724304757,0.03,169.36,169.35,41.08869881]
[1752724308249,0.03,169.36,169.35,57.87338278]
[1752724309645,0.03,169.36,169.35,88.75338278]
[1752724310147,0.1,169.39,169.38,42.92684554]
[1752724310475,0.03,169.44,169.42,0.14216157]
[1752724310648,0.03,169.44,169.43,9.04160663]
[1752724310967,0.03,169.44,169.43,9.1837682]
[1752724311171,0.03,169.44,169.43,15.08591067]
[1752724311671,0.1,169.46,169.45,26.0]
[1752724311966,0.03,169.51,169.45,82.14845217]
[1752724312168,0.03,169.51,169.47,0.14216157]
[1752724312395,5.92935697,169.51,169.49,8.36160663]
[1752724312777,5.92935697,169.51,169.5,8.36160663]
[1752724312945,0.03,169.51,169.5,8.36160663]
[1752724313763,0.03,169.51,169.48,0.68]
[1752724313940,0.03,169.51,169.49,8.36160663]
[1752724315056,0.67,169.5,169.44,0.67]
[1752724315254,9.03160663,169.5,169.45,8.36160663]
[1752724315458,0.67,169.49,169.45,8.36160663]
[1752724315676,0.67,169.49,169.46,8.36160663]
[1752724316580,0.7,169.51,169.48,8.36160663]
[1752724317187,5.89970501,169.5,169.48,8.36160663]
[1752724317357,5.89970501,169.5,169.47,8.36160663]
[1752724317562,0.67,169.49,169.46,8.36160663]
[1752724317862,6.1339,169.53,169.46,8.36160663]
[1752724317863,3.07283901,169.58,169.53,42.92684554]
[1752724318055,0.03,169.64,169.59,0.14216157]
[1752724318382,0.03,169.64,169.61,0.14216157]
[1752724318553,0.03,169.64,169.63,8.36160663]
[1752724319987,0.03,169.64,169.63,9.03160663]
[1752724320289,0.03,169.64,169.63,8.36160663]
[1752724320659,0.03,169.64,169.6,26.67]
[1752724320864,0.03,169.64,169.63,8.36160663]
[1752724323882,0.03,169.64,169.61,0.67]
[1752724324089,0.03,169.64,169.63,8.36160663]
[1752724324461,0.7,169.64,169.59,26.14216157]
[1752724324674,0.7,169.64,169.62,8.36160663]
[1752724324871,0.03,169.64,169.63,8.36160663]
[1752724326078,0.7,169.64,169.62,8.36160663]
[1752724326291,0.67,169.63,169.61,8.36160663]
[1752724326670,0.67,169.62,169.53,18.96158397]
[1752724326870,9.03160663,169.62,169.57,8.36160663]
[1752724327096,8.36160663,169.58,169.55,1.81725975]
[1752724327308,0.03,169.64,169.57,8.36160663]
[1752724327473,0.03,169.64,169.61,8.36160663]
[1752724327672,0.03,169.64,169.62,8.36160663]
[1752724328372,0.03,169.64,169.63,9.03160663]
[1752724329203,0.03,169.64,169.63,9.1737682]
[1752724332085,0.03,169.64,169.63,15.06895183]
[1752724332497,0.03,169.64,169.63,0.81216157]
[1752724332697,0.03,169.64,169.63,35.1737682]
[1752724335190,0.03,169.64,169.63,8.5037682]
[1752724336015,0.03,169.64,169.63,8.36160663]
[1752724337291,0.03,169.64,169.63,9.03160663]
[1752724338119,0.03,169.64,169.62,8.36160663]
[1752724338485,28.98988504,169.67,169.62,8.36160663]
[1752724338486,28.71988504,169.67,169.62,8.36160663]
[1752724340423,5.89448865,169.65,169.62,8.36160663]
[1752724340594,0.2,169.64,169.6,8.36160663]
[1752724340807,8.56160663,169.63,169.57,0.67]
[1752724341132,8.36160663,169.62,169.57,8.36160663]
[1752724341417,0.2,169.62,169.58,8.36160663]
[1752724341590,20.63071028,169.65,169.59,9.03160663]
[1752724341591,8.36160663,169.64,169.59,9.03160663]
[1752724342189,50.30315354,169.65,169.59,9.03160663]
[1752724342511,58.66476017,169.65,169.6,8.36160663]
[1752724343091,8.56160663,169.64,169.59,8.36160663]
[1752724343604,8.56160663,169.64,169.59,9.03160663]
[1752724343921,8.36160663,169.64,169.59,9.03160663]
[1752724344095,8.36160663,169.64,169.6,0.67]
[1752724344696,5.89518363,169.63,169.6,9.03160663]
[1752724344897,5.89518363,169.63,169.61,8.36160663]
[1752724345493,5.89518363,169.63,169.6,9.03160663]
[1752724345829,5.89518363,169.63,169.6,8.36160663]
[1752724345993,5.89518363,169.63,169.6,9.03160663]
[1752724346317,5.89518363,169.63,169.61,8.36160663]
[1752724346904,20.63071028,169.65,169.61,8.36160663]
[1752724347206,28.99231691,169.65,169.6,9.03160663]
[1752724348713,20.63071028,169.65,169.63,8.36160663]
[1752724348915,14.73622163,169.65,169.63,8.36160663]
[1752724350188,14.73622163,169.65,169.62,8.36160663]
[1752724350814,14.93622163,169.65,169.62,8.36160663]
[1752724351014,0.2,169.64,169.6,8.36160663]
[1752724351493,0.2,169.64,169.55,1.14725975]
[1752724351494,8.36160663,169.61,169.56,8.36160663]
[1752724351817,25.1462906,169.57,169.52,0.06]
[1752724352117,5.89761736,169.56,169.54,8.36160663]
[1752724352321,5.89761736,169.56,169.55,8.36160663]
[1752724352998,5.89761736,169.56,169.55,9.03160663]
[1752724353898,5.8969218,169.58,169.55,9.03160663]
[1752724354098,5.8969218,169.58,169.57,8.36160663]
[1752724354314,5.89622641,169.6,169.57,8.36160663]
[1752724354508,5.89622641,169.6,169.58,8.36160663]
[1752724354710,20.83679244,169.6,169.56,8.36160663]
[1752724355499,0.2,169.59,169.56,8.36160663]
[1752724356303,5.8969218,169.58,169.56,8.36160663]
[1752724356504,5.8969218,169.58,169.55,8.42160663]
[1752724357595,5.8969218,169.58,169.56,8.36160663]
[1752724358210,5.8969218,169.58,169.57,8.36160663]
[1752724358406,14.74056603,169.6,169.57,8.36160663]
[1752724358407,31.02,169.59,169.57,8.36160663]
[1752724359499,5.8969218,169.58,169.57,8.36160663]
[1752724360807,5.8969218,169.58,169.56,8.36160663]
[1752724361213,5.8969218,169.58,169.55,0.73]
[1752724361214,6.0969218,169.58,169.55,8.42160663]
[1752724361418,6.0969218,169.58,169.55,0.06]
[1752724361630,5.8969218,169.58,169.55,8.42160663]
[1752724362647,5.8969218,169.58,169.56,9.03160663]
[1752724363052,5.8969218,169.58,169.57,9.03160663]
[1752724363416,5.8969218,169.58,169.57,0.67]
[1752724363745,5.8969218,169.58,169.57,9.03160663]
[1752724364048,5.8969218,169.58,169.57,8.36160663]
[1752724365140,20.63922631,169.58,169.55,0.06]
[1752724365447,8.36160663,169.56,169.52,0.06]
[1752724365760,5.898661,169.53,169.52,0.06]
[1752724366923,8.36160663,169.53,169.52,0.06]
[1752724367123,25.3462906,169.53,169.52,1e-08]
[1752724369044,31.38711317,169.53,169.52,1e-08]
[1752724369829,62.34711317,169.53,169.52,1e-08]
[1752724371248,31.38711317,169.53,169.52,1e-08]
[1752724371460,62.34711317,169.53,169.52,1e-08]
[1752724376348,51.1462906,169.49,169.48,1e-08]
[1752724376653,82.0462906,169.49,169.48,1e-08]
[1752724376831,82.2462906,169.49,169.48,1e-08]
[1752724377647,82.38845217,169.49,169.48,1e-08]
[1752724378026,88.28850527,169.49,169.48,1e-08]
[1752724378449,5.9000531,169.49,169.48,1e-08]
[1752724378637,36.8400531,169.49,169.48,9.08160664]
[1752724379040,36.8400531,169.49,169.48,0.72000001]
[1752724380639,36.8400531,169.49,169.48,1e-08]
[1752724381156,53.62473707,169.49,169.48,1e-08]
[1752724381374,62.1863437,169.49,169.48,1e-08]
[1752724381661,36.8000531,169.49,169.48,1e-08]
[1752724382860,36.8000531,169.49,169.48,0.72000001]
[1752724383062,36.8000531,169.49,169.48,1e-08]
[1752724383264,58.91049379,169.49,169.48,1e-08]
[1752724383569,53.58473707,169.49,169.48,1e-08]
[1752724384865,58.71049379,169.49,169.48,1e-08]
[1752724385058,58.91049379,169.49,169.48,1e-08]
[1752724385572,58.71049379,169.49,169.48,1e-08]
[1752724385935,5.9000531,169.49,169.48,1e-08]
[1752724386154,36.7800531,169.49,169.48,1e-08]
[1752724387352,41.90580982,169.49,169.48,1e-08]
[1752724388077,58.69049379,169.49,169.48,1e-08]
[1752724388268,36.7800531,169.49,169.48,1e-08]
[1752724389258,36.7800531,169.49,169.48,0.72000001]
[1752724389649,36.7800531,169.49,169.48,1e-08]
[1752724391281,58.89049379,169.49,169.48,1e-08]
[1752724391579,58.69049379,169.49,169.48,1e-08]
[1752724392162,58.89049379,169.49,169.48,1e-08]
[1752724392857,59.03265536,169.49,169.48,1e-08]
[1752724393856,58.69049379,169.49,169.48,1e-08]
[1752724394278,58.89049379,169.49,169.48,1e-08]
[1752724398479,58.69049379,169.49,169.48,1e-08]
[1752724399889,58.89049379,169.49,169.48,1e-08]
[1752724400488,59.03265536,169.49,169.48,1e-08]
[1752724400870,95.83265536,169.49,169.48,1e-08]
[1752724402560,100.95841208,169.49,169.48,1e-08]
[1752724402899,26.0,169.43,169.41,0.06]
[1752724403195,52.71044069,169.42,169.41,0.06]
[1752724403563,30.8,169.42,169.41,0.78]
[1752724404684,36.70249085,169.42,169.41,0.78]
[1752724411074,36.70249085,169.42,169.41,0.06]
[1752724411273,41.82824757,169.42,169.41,0.06]
[1752724411478,58.61293154,169.42,169.41,0.06]
[1752724412393,58.61293154,169.42,169.38,0.92]
[1752724412394,16.78468397,169.41,169.38,0.2]
[1752724412569,21.91044069,169.39,169.38,0.2]
[1752724412984,27.8139769,169.39,169.38,0.2]
[1752724413794,28.15613847,169.39,169.38,1e-08]
[1752724414001,33.28189519,169.39,169.38,1e-08]
[1752724415476,43.28189519,169.39,169.38,1e-08]
[1752724415673,33.28189519,169.39,169.38,1e-08]
[1752724415880,28.15613847,169.39,169.38,1e-08]
[1752724416708,27.95613847,169.39,169.38,1e-08]
[1752724416997,58.5939769,169.39,169.38,1e-08]
[1752724417691,5.90353621,169.39,169.38,5.84575673]
[1752724417890,36.66353621,169.39,169.38,5.84575673]
[1752724419004,36.66353621,169.39,169.38,0.72000001]
[1752724419379,36.66353621,169.39,169.38,5.84575673]
[1752724421117,30.76,169.39,169.38,5.84575673]
[1752724421399,5.9032812,169.4,169.38,5.84575673]
[1752724421400,36.6632812,169.4,169.38,5.84575673]
[1752724421598,30.76,169.4,169.39,5.84575672]
[1752724421803,30.76,169.4,169.39,5.12575672]
[1752724422002,36.66290461,169.41,169.39,5.84575672]
[1752724422210,36.66290461,169.41,169.4,0.72]
[1752724422512,30.76,169.41,169.4,5.84575672]
[1752724423702,36.66251382,169.42,169.4,5.84575672]
[1752724424004,36.66251382,169.42,169.41,5.84575672]
[1752724425303,30.76,169.42,169.41,5.84575672]
[1752724425502,30.76,169.43,169.41,5.84575672]
[1752724425706,30.76,169.43,169.42,5.12575672]
[1752724426010,30.76,169.43,169.42,5.84575672]
[1752724426580,30.76,169.44,169.42,5.84575672]
[1752724426823,36.66179414,169.44,169.43,5.84575672]
[1752724427180,36.66179414,169.44,169.43,0.72]
[1752724427702,36.66179414,169.44,169.43,5.84575672]
[1752724428104,36.66179414,169.44,169.43,0.72]
[1752724428409,36.66179414,169.44,169.43,5.84575672]
[1752724431113,30.76,169.44,169.43,5.84575672]
[1752724431494,36.66179414,169.44,169.43,5.84575672]
[1752724432317,30.76,169.44,169.43,5.84575672]
[1752724432615,5.90118797,169.46,169.43,5.84575672]
[1752724432806,5.90118797,169.46,169.45,5.12575672]
[1752724433119,36.66118797,169.46,169.45,5.84575672]
[1752724435715,36.66118797,169.46,169.41,6.2532]
[1752724435716,36.66118797,169.46,169.42,0.71]
[1752724435896,36.66118797,169.46,169.43,0.71]
[1752724436292,51.41393198,169.46,169.43,0.71]
[1752724436493,51.41393198,169.46,169.44,0.71]
[1752724438999,22.11044069,169.45,169.4,0.71]
[1752724439205,5.12575672,169.43,169.4,0.71]
[1752724439416,30.76,169.42,169.4,0.71]
[1752724440111,5.90283926,169.41,169.4,0.71]
[1752724440505,5.90283926,169.41,169.38,5.83575673]
[1752724440718,30.76,169.4,169.39,5.83575672]
[1752724441620,5.9010976,169.46,169.39,5.83575672]
[1752724441802,30.76,169.45,169.43,5.12575672]
[1752724441997,5.90179414,169.44,169.43,5.83575672]
[1752724443496,36.66156204,169.45,169.43,5.83575672]
[1752724443721,36.66156204,169.45,169.44,5.83575672]
[1752724443907,36.66156204,169.45,169.44,0.71]
[1752724444107,36.66156204,169.45,169.39,5.90344983]
[1752724444108,36.66156204,169.45,169.43,5.12575672]
[1752724444423,36.66156204,169.45,169.43,5.83575672]
[1752724445311,36.66156204,169.45,169.44,5.83575672]
[1752724445499,36.66156204,169.45,169.43,5.12575672]
[1752724445696,36.66156204,169.45,169.42,5.12575672]
[1752724445927,36.69156204,169.45,169.42,5.83575672]
[1752724446304,36.69156204,169.45,169.43,5.83575672]
[1752724446504,36.69156204,169.45,169.43,5.12575672]
[1752724446711,36.69156204,169.45,169.44,0.71]
[1752724446908,0.03,169.45,169.44,5.83575672]
[1752724448808,0.03,169.45,169.44,0.71]
[1752724449029,0.03,169.45,169.44,5.83575672]
[1752724449527,30.77,169.45,169.44,5.83575672]
[1752724451300,5.90179414,169.44,169.43,5.12575672]
[1752724452435,5.90179414,169.44,169.43,5.83575672]
[1752724454146,5.90179414,169.44,169.42,5.12575672]
[1752724454437,30.74,169.43,169.42,5.83575672]
[1752724455523,36.64214247,169.43,169.42,5.83575672]
[1752724457339,36.64214247,169.43,169.4,5.83575672]
[1752724457545,36.64214247,169.43,169.38,5.83575673]
[1752724457546,56.52325538,169.43,169.38,5.83575673]
[1752724458123,51.39749866,169.43,169.39,5.12575672]
[1752724458318,51.39749866,169.43,169.39,5.83575672]
[1752724460745,5.90214247,169.43,169.42,5.12575672]
[1752724460929,5.93152461,169.45,169.42,5.83575672]
[1752724461141,0.03,169.45,169.44,5.12575672]
[1752724461327,0.03,169.45,169.44,5.83575672]
[1752724462133,5.93144585,169.45,169.44,5.83575672]
[1752724463636,5.93144585,169.45,169.43,5.12575672]
[1752724463838,30.74,169.44,169.43,5.12575672]
[1752724464537,30.74,169.44,169.42,5.12575672]
[1752724464857,30.74,169.44,169.41,5.12575672]
[1752724465622,5.90214247,169.43,169.41,5.12575672]
[1752724465827,30.74,169.42,169.38,1.50720001]
[1752724466058,30.74,169.42,169.41,5.12575672]
[1752724466446,30.74,169.42,169.41,5.84575672]
[1752724467446,36.64214247,169.43,169.41,5.84575672]
[1752724467647,36.64214247,169.43,169.42,5.84575672]
[1752724468068,36.67214247,169.43,169.42,5.84575672]
[1752724469179,5.93214247,169.43,169.42,5.84575672]
[1752724470053,0.03,169.43,169.42,5.84575672]
[1752724474867,0.03,169.43,169.42,5.98791829]
[1752724476873,0.03,169.43,169.42,5.84575672]
[1752724477172,0.03,169.43,169.38,63.4951183]
[1752724477173,0.03,169.43,169.4,0.72]
[1752724477372,5.93214247,169.43,169.4,5.12575672]
[1752724477871,5.93214247,169.43,169.42,5.12575672]
[1752724478179,5.93214247,169.43,169.42,5.84575672]
[1752724479774,0.03,169.43,169.42,5.84575672]
[1752724487978,0.03,169.43,169.42,5.12575672]
[1752724488173,0.03,169.43,169.4,5.84575672]
[1752724488377,0.03,169.43,169.41,0.72]
[1752724488683,0.03,169.43,169.41,5.84575672]
[1752724489578,0.03,169.43,169.4,5.12575672]
[1752724489771,30.75,169.43,169.4,5.12575672]
[1752724491464,30.75,169.43,169.4,5.84575672]
[1752724491688,5.90249085,169.42,169.4,5.84575672]
[1752724492267,5.90249085,169.42,169.4,5.12575672]
[1752724492467,5.90249085,169.42,169.41,0.72]
[1752724492971,5.90249085,169.42,169.4,5.12575672]
[1752724494880,5.90249085,169.42,169.4,5.83575672]
[1752724495486,5.90249085,169.42,169.38,1e-08]
[1752724495487,5.90249085,169.42,169.41,5.83575672]
[1752724496087,36.63227035,169.43,169.41,5.83575672]
[1752724496292,5.93227035,169.43,169.42,5.83575672]
[1752724497675,5.93227035,169.43,169.4,0.71]
[1752724497879,0.03,169.43,169.42,5.12575672]
[1752724498096,0.03,169.43,169.41,5.83575672]
[1752724498285,0.03,169.43,169.41,5.12575672]
[1752724498591,0.03,169.43,169.42,0.71]
[1752724498795,0.03,169.43,169.42,5.83575672]
[1752724500195,0.03,169.43,169.42,0.71]
[1752724500390,0.03,169.43,169.42,5.12575672]
[1752724501086,0.03,169.43,169.41,5.83575672]
[1752724501393,0.03,169.43,169.42,5.12575672]
[1752724501791,0.03,169.43,169.42,5.83575672]
[1752724503082,0.03,169.43,169.41,5.12575672]
[1752724503675,5.90249085,169.42,169.38,1e-08]
[1752724503875,20.65871797,169.42,169.38,5.12575673]
[1752724504091,20.65871797,169.42,169.38,5.83575673]
[1752724504286,5.32575672,169.41,169.38,1e-08]
[1752724504492,5.12575672,169.39,169.38,1e-08]
[1752724504877,5.32575672,169.39,169.38,1e-08]
[1752724505503,22.11044069,169.39,169.38,1e-08]
[1752724505697,29.5846769,169.39,169.38,1e-08]
[1752724510716,60.2846769,169.39,169.38,1e-08]
[1752724510887,58.5139769,169.39,169.38,1e-08]
[1752724511087,53.38822018,169.39,169.38,1e-08]
[1752724511394,41.72929293,169.39,169.38,1e-08]
[1752724512616,41.92929293,169.39,169.38,1e-08]
[1752724513003,58.7139769,169.39,169.38,1e-08]
[1752724521212,5.90353621,169.39,169.38,5.83575673]
[1752724521412,36.60353621,169.39,169.38,5.83575673]
[1752724522204,30.7,169.39,169.38,5.83575673]
[1752724522500,36.60353621,169.39,169.38,5.83575673]
[1752724522812,30.7,169.4,169.38,5.83575673]
[1752724523016,0.03,169.43,169.39,5.83575672]
[1752724523202,30.7,169.42,169.41,5.12575672]
[1752724523405,0.03,169.43,169.41,5.83575672]
[1752724523718,0.03,169.43,169.42,5.83575672]
[1752724526703,0.03,169.43,169.42,0.71]
[1752724527106,0.03,169.43,169.4,5.83575672]
[1752724527425,30.68,169.42,169.38,0.71000001]
[1752724527723,30.68,169.42,169.39,0.71]
[1752724527724,35.80575672,169.42,169.39,0.71]
[1752724528026,30.68,169.42,169.39,0.71]
[1752724528223,5.90283926,169.41,169.38,5.12575673]
[1752724528418,30.68,169.41,169.4,5.83575672]
[1752724528619,5.90258232,169.42,169.4,5.83575672]
[1752724528820,36.61225584,169.43,169.41,5.83575672]
[1752724529020,36.61225584,169.43,169.42,0.71]
[1752724529526,36.61225584,169.43,169.42,5.83575672]
[1752724531023,0.03,169.43,169.42,5.83575672]
[1752724531611,0.03,169.43,169.42,5.97791829]
[1752724533708,0.03,169.43,169.42,5.83575672]
[1752724534803,0.03,169.43,169.42,0.71]
[1752724535214,0.03,169.43,169.4,0.71]
[1752724536404,0.03,169.43,169.41,0.71]
[1752724536609,0.03,169.43,169.42,5.12575672]
[1752724537218,0.03,169.43,169.42,5.83575672]
[1752724538734,0.03,169.43,169.42,0.71]
[1752724539731,0.03,169.43,169.42,5.83575672]
[1752724548120,0.03,169.43,169.42,11.88040914]
[1752724552444,0.03,169.43,169.42,36.61791829]
[1752724554060,0.03,169.43,169.42,42.52040914]
[1752724555053,0.03,169.43,169.42,36.61791829]
[1752724556729,0.03,169.43,169.42,36.47575672]
[1752724559857,0.03,169.45,169.42,53.40260226]
[1752724560044,0.03,169.45,169.44,5.26791829]
[1752724560356,0.03,169.45,169.44,35.88791829]
[1752724560662,0.03,169.45,169.44,36.58791829]
[1752724562263,0.03,169.45,169.44,60.8606964]
[1752724562558,0.03,169.5,169.49,5.26791829]
[1752724562933,0.03,169.5,169.49,5.12575672]
[1752724563133,0.03,169.5,169.49,5.82575672]
[1752724566382,5.89831308,169.54,169.49,5.82575672]
[1752724566676,0.03,169.58,169.53,5.12575672]
[1752724566836,0.03,169.58,169.57,5.12575672]
[1752724567340,5.92701565,169.58,169.57,5.12575672]
[1752724568045,5.92701565,169.58,169.52,0.7]
[1752724568046,26.02507688,169.58,169.52,0.7]
[1752724568235,5.12575672,169.57,169.52,5.82575672]
[1752724568433,5.12575672,169.57,169.52,5.12575672]
[1752724568434,0.23,169.56,169.52,5.12575672]
[1752724568666,5.35575672,169.55,169.5,5.12575672]
[1752724568954,16.78468397,169.57,169.5,5.12575672]
[1752724568955,5.12575672,169.56,169.51,5.12575672]
[1752724569157,5.35575672,169.55,169.5,5.82575672]
[1752724569544,5.89831308,169.54,169.51,5.12575672]
[1752724569748,5.89831308,169.54,169.53,5.12575672]
[1752724570766,5.89831308,169.54,169.52,5.82575672]
[1752724571268,5.89726956,169.57,169.53,5.82575672]
[1752724571438,5.89726956,169.57,169.54,5.82575672]
[1752724571842,5.89726956,169.57,169.54,5.12575672]
[1752724573864,5.89726956,169.57,169.54,5.82575672]
[1752724574056,5.89726956,169.57,169.55,5.82575672]
[1752724575786,5.89726956,169.57,169.56,5.82575672]
[1752724576779,5.9269218,169.58,169.56,5.82575672]
[1752724577547,5.9269218,169.58,169.54,0.7]
[1752724577768,5.9269218,169.58,169.56,5.12575672]
[1752724578575,5.9269218,169.58,169.56,5.82575672]
[1752724578946,5.9269218,169.58,169.56,5.12575672]
[1752724581974,25.79498303,169.58,169.52,0.7]
[1752724582162,20.66922631,169.58,169.54,5.12575672]
[1752724582469,20.66922631,169.58,169.54,5.82575672]
[1752724583655,26.02498303,169.58,169.54,5.12575672]
[1752724583886,0.23,169.57,169.54,5.12575672]
[1752724584460,0.23,169.57,169.53,5.12575672]
[1752724585367,5.89761736,169.56,169.53,5.12575672]
[1752724585663,5.89761736,169.56,169.53,5.84575672]
[1752724586775,5.89761736,169.56,169.55,5.12575672]
[1752724586978,41.83337408,169.56,169.51,0.72]
[1752724587174,56.57741748,169.56,169.51,5.84575672]
[1752724587789,56.57741748,169.56,169.51,5.12575672]
[1752724587790,51.45166076,169.56,169.51,5.12575672]
[1752724587986,51.22166076,169.56,169.53,5.12575672]
[1752724588193,51.22166076,169.56,169.53,5.84575672]
[1752724589060,51.22166076,169.56,169.53,5.12575672]
[1752724589662,51.22166076,169.56,169.53,5.84575672]
[1752724590406,51.22166076,169.56,169.53,0.72]
[1752724590605,5.35575672,169.55,169.5,5.84575672]
[1752724590897,5.35575672,169.55,169.48,26.0]
[1752724590898,5.12575672,169.53,169.48,5.12575672]
[1752724591078,30.81,169.52,169.48,5.12575672]
[1752724591590,5.89935697,169.51,169.48,5.84575672]
[1752724592167,5.89935697,169.51,169.48,0.72]
[1752724592396,5.89935697,169.51,169.46,0.72]
[1752724592397,26.00350611,169.51,169.46,0.72]
[1752724592574,20.64774939,169.51,169.47,5.84575672]
[1752724592776,20.64774939,169.51,169.48,5.84575672]
[1752724592777,5.89935697,169.51,169.48,5.84575672]
[1752724592974,5.89935697,169.51,169.48,5.12575672]